Cogmind - Beta 16.1 @@@ ROGUE MODE // 2026.03.21 @ 23:39:04 Player: stevie364 Result: Destroyed by G-47 Trooper with Particle Gun Performance ------------- Evolutions (2) 1000 Regions Visited (5) 1000 Robots Destroyed (71) 355 Value Destroyed (1662) 1662 Prototype IDs (4) 80 Alien Tech Used (0) 0 Bonus (0) 0 TOTAL SCORE: 4097 Bonus ------- None Cogmind --------- Core Integrity 0/550 Matter 147/300 Energy 269/275 System Corruption 1% Temperature Cool (83) Movement Rolling (125) Ox3 Location -8/Materials Parts ------- > --- POWER (1) -------- Deuterium Engine > --- PROPULSION (4) --- Wheel > --- UTILITY (4) ------ Large Storage Unit Seismic Detector > --- WEAPON (2) ------- Precision Beam Rifle Katana > --- INVENTORY (15) --- Flight Unit Improved Flight Unit Improved Flight Unit Improved Flight Unit Improved Flight Unit Improved Signal Interpreter Hacking Suite Hacking Suite Hacking Suite Shock Bomb Launcher Peak State ------------ > --- POWER ------------ Light Nuclear Core > --- PROPULSION ------- Light Treads Light Treads Improved Treads Improved Treads > --- UTILITY ---------- Large Storage Unit Seismic Detector Decoy Drone Bay > --- WEAPON ----------- Precision Beam Rifle Improved Assault Rifle > --- INVENTORY -------- Light Nuclear Core Light Treads Flight Unit Improved Flight Unit Improved Flight Unit Improved Flight Unit Improved Flight Unit Improved Signal Interpreter Hacking Suite Hacking Suite Precision Beam Rifle Precision Beam Rifle Shock Bomb Launcher Grenade Launcher Katana [Rating: 36] Favorites ----------- Power Deuterium Engine Engine Deuterium Engine Power Core Light Nuclear Core Propulsion Improved Treads Treads Improved Treads Wheel Wheel Flight Unit Improved Flight Unit Utility Large Storage Unit Device Seismic Detector Storage Large Storage Unit Weapon Autogun Energy Gun Precision Beam Rifle Ballistic Gun Autogun Launcher Grenade Launcher Special Weapon Welding Torch Slashing Weapon Katana Build | -11 -10 -10 -10 -9 -8 ------- Run | Yrd Mat Min Exi Min Mat Slots Evolved 4 | . . . . . 4 Power . | . . . . . . Propulsion 2 | . . . . . 2 Utility 2 | . . . . . 2 Weapon . | . . . . . . Parts Attached 47 | 7 10 2 1 7 20 Power 8 | 1 1 1 . 1 4 Engine 6 | 1 1 1 . 1 2 Core 2 | . . . . . 2 Reactor . | . . . . . . Propulsion 13 | 2 4 . . . 7 Treads 11 | 2 3 . . . 6 Leg . | . . . . . . Wheel 1 | . . . . . 1 Hover . | . . . . . . Flight 1 | . 1 . . . . Utility 10 | 2 2 . 1 3 2 Device 7 | 1 1 . . 3 2 Storage 3 | 1 1 . 1 . . Processor . | . . . . . . Hackware . | . . . . . . Protection . | . . . . . . Artifact . | . . . . . . Weapon 16 | 2 3 1 . 3 7 Energy Gun 5 | . . . . 1 4 Energy Cannon . | . . . . . . Ballistic Gun 7 | 2 2 . . 2 1 Ballistic Cannon . | . . . . . . Launcher 2 | . . 1 . . 1 Special Weapon 1 | . 1 . . . . Impact Weapon . | . . . . . . Slashing Weapon 1 | . . . . . 1 Piercing Weapon . | . . . . . . Special Melee Weapon . | . . . . . . Unidentified Prototypes 4 | . 1 . . . 3 Parts Lost 18 | . . . . 4 14 Power 3 | . . . . 1 2 Propulsion 6 | . . . . . 6 Utility 2 | . . . . 1 1 Weapon 7 | . . . . 2 5 Highest Loss Streak 11 | . . . . 4 11 To Critical Strikes 1 | . . . . . 1 Average Backups 12 | 2 12 14 14 13 12 Power . | . . . . . . Propulsion 6 | . 5 7 7 7 6 Utility 2 | . 3 3 3 3 3 Weapon 3 | . 2 4 4 2 2 Tool/Special . | . . . . . . Unused Backups 26 | . 10 3 . 1 12 Power 2 | . . . . . 2 Propulsion 9 | . 5 . . . 4 Utility 8 | . 1 3 . . 4 Weapon 7 | . 4 . . 1 2 Tool/Special . | . . . . . . Average Slot Usage (%) 95 | . 100 100 100 93 79 Engine 11 | . 14 14 14 11 1 Treads 28 | . 28 28 28 28 29 Device 13 | . 14 14 14 10 15 Storage 13 | . 14 14 14 14 9 Energy Gun 1 | . . . . . 8 Ballistic Gun 24 | . 27 27 28 27 9 Peak Build Rating 36 | 7 13 17 17 18 36 Average Rating 15 | 5 9 16 17 16 25 On Entrance 11 | . 7 13 17 17 15 Avg Prop Armor Cover (%) . | . . . . . . Naked Turns . | . . . . . . Heaviest Build 47 | 15 32 36 36 36 47 Greatest Support 92 | 40 46 46 46 46 92 Greatest Overweight (x) 8 | . . . . . 8 Average Overweight (x) . | . . . . . . Largest Inventory Capacity 15 | 8 15 15 15 15 15 Average Capacity 14 | 7 14 15 15 15 15 Most Carried 15 | 3 15 15 15 15 15 Average Carried 13 | 2 12 14 15 14 13 Final Capacity 15 | 8 15 15 15 15 15 Final Carried 15 | 3 15 15 15 13 10 Class Distribution -------------------- 91% | Mutant 8% | Scavenger-Mutant Dominant Class ---------------- Mutant | -10/Materials Mutant | -10/Mines Mutant | -10/Exiles Mutant | -9/Mines Scavenger-Mutant | -8/Materials Resources | -11 -10 -10 -10 -9 -8 ----------- Run | Yrd Mat Min Exi Min Mat Matter Collected 1513 | 318 474 103 10 211 397 Remotely 10 | . 10 . . . . Salvage Created 2252 | 130 583 123 . 213 1203 Parts 145 | 11 41 12 . 20 61 Haulers Intercepted 5 | . 2 . . . 3 Recyclers Shooed . | . . . . . . Parts Field Recycled . | . . . . . . Retrieved Matter . | . . . . . . Parts Self-Destructed . | . . . . . . Prevented . | . . . . . . Parts Restored . | . . . . . . Kills | -11 -10 -10 -10 -9 -8 ------- Run | Yrd Mat Min Exi Min Mat Combat Hostiles Destroyed 53 | . 18 6 . 4 25 Melee 1 | . . . . . 1 Guns 38 | . 18 3 . 4 13 AOE 14 | . . 3 . . 11 Classes Destroyed 12 | 3 5 . . 1 3 Worker 3 | 1 . . . 1 1 Tunneler 7 | 2 . 1 . 4 . Hauler 5 | . 2 . . . 3 Recycler 1 | 1 . . . . . Operator 2 | . 1 . . . 1 Watcher 1 | . 1 . . . . Swarmer 22 | . 12 5 . . 5 Grunt 25 | . 6 1 . 3 15 Duelist 1 | . . . . . 1 Sentry 3 | . . . . . 3 Hunter 1 | . . . . . 1 Assembled 1 | . . . . 1 . Best Kill Streak 8 | 3 5 4 . 3 8 Combat Bots Only 7 | . 4 3 . 3 7 Max Kills in Single Turn 3 | 1 1 3 . 2 3 Gunslinging 1 | . . . . 1 . Exploded 2 | . . 2 . . 2 Melee 1 | . . . . . 1 Uniques/NPCs Destroyed . | . . . . . . Combat | -11 -10 -10 -10 -9 -8 -------- Run | Yrd Mat Min Exi Min Mat Hostile Shots Fired 349 | . 74 5 . 22 248 Missed 96 | . 23 . . 7 66 Hits 253 | . 51 5 . 15 182 Melee 8 | . . . . 1 7 Projectile 245 | . 51 5 . 14 175 AOE 9 | . . . . 9 . Critical Strikes 9 | . . . . . 9 Damage Taken 3719 | . 450 91 . 432 2746 Core 731 | . 80 16 . 69 566 Absorbed by Shields . | . . . . . . Core Remaining (%) 67 | 100 . . . 34 . Volleys Fired 165 | 8 53 8 . 19 77 Largest 2 | 2 2 2 . 2 2 Hottest 122 | 40 46 53 . 46 122 Shots Fired 308 | 16 106 16 . 37 133 Gun 293 | 16 106 14 . 37 120 Cannon . | . . . . . . Launcher 15 | . . 2 . . 13 Special . | . . . . . . Kinetic 232 | 16 106 14 . 37 59 Thermal 61 | . . . . . 61 Explosive 8 | . . 2 . . 6 Electromagnetic 7 | . . . . . 7 Robot Hit Streak 32 | 3 11 3 . 7 32 Robot Miss Streak 3 | 3 3 2 . 2 2 Penetration Max . | . . . . . . Secondary Targets 4 | . 3 . . 1 . Max Gunslinging Chain 1 | . 1 . . 1 . Shots Hit Robots 212 | 8 62 9 . 24 109 Core Hits 111 | 5 28 8 . 13 57 Critical Kills . | . . . . . . Critical Parts Destroyed . | . . . . . . Critical Strikes 6 | . . . . . 6 Burn 5 | . . . . . 5 Sever 1 | . . . . . 1 Melee Attacks 4 | . . . . . 4 Impact . | . . . . . . Slashing 4 | . . . . . 4 Piercing . | . . . . . . Sneak Attacks . | . . . . . . Combat Hostiles . | . . . . . . Follow-up Attacks . | . . . . . . Damage Inflicted 4478 | 116 822 343 . 374 2823 Guns 3040 | 116 814 133 . 368 1609 Cannons . | . . . . . . Explosions 1308 | . . 201 . . 1107 Melee 91 | . . . . . 91 Ramming 39 | . 8 9 . 6 16 Kinetic 2124 | 116 814 133 . 368 693 Thermal 1050 | . . . . . 1050 Explosive 735 | . . 201 . . 534 Electromagnetic 439 | . . . . . 439 Impact . | . . . . . . Slashing 91 | . . . . . 91 Piercing . | . . . . . . Highest Corruption 1 | . . . . . 1 Average Corruption 1 | . . . . . 1 Corruption Purged . | . . . . . . Corruption Blocked . | . . . . . . Effects 2 | . . . . . 2 Matter Fused 1 | . . . . . 1 Misfires 1 | . . . . . 1 Overload Shots . | . . . . . . Overflow Damage 55 | . . . . . 55 Projectiles . | . . . . . . Explosions 55 | . . . . . 55 Melee . | . . . . . . Knockbacks 2 | . . 1 . . 1 Impact 2 | . . 1 . . 1 Kinetic . | . . . . . . Secondary . | . . . . . . Self-Inflicted Damage 174 | . . 22 . . 152 Shots 10 | . . 1 . . 9 Rammed 9 | . 2 1 . 1 5 Targets Rammed 9 | . 2 1 . 1 5 Kicked . | . . . . . . Crushed . | . . . . . . Highest Temperature 207 | . 24 32 . 27 207 Average Temperature 60 | . 7 12 . 10 78 Received Heat Transfer 1158 | . 72 36 . 33 1017 Siege Activations . | . . . . . . Martial Activations . | . . . . . . Shielding Activations . | . . . . . . Robots Disrupted . | . . . . . . Combat Hostiles . | . . . . . . Robots Corrupted . | . . . . . . Combat Hostiles . | . . . . . . Parts Fried . | . . . . . . Impact Corruptions . | . . . . . . Robots Melted . | . . . . . . Combat Hostiles . | . . . . . . Parts Melted 4 | . . . . . 4 Heat Transferred 2468 | . . . . . 2468 Parts Sabotaged . | . . . . . . Parts Stolen . | . . . . . . Parts Stripped . | . . . . . . Power Chain Reactions 2 | . . . . . 2 Alert | -11 -10 -10 -10 -9 -8 ------- Run | Yrd Mat Min Exi Min Mat Maximum Alert Level 1 | . . . . . 1 Low Security (%) 95 | 100 100 100 . 100 78 Level 1 4 | . . . . . 21 Level 2 . | . . . . . . Level 3 . | . . . . . . Level 4 . | . . . . . . Level 5 . | . . . . . . High Security . | . . . . . . Max Security . | . . . . . . Peak Influence 363 | 5 174 89 . 70 363 Initial . | . . . . . . Average 45 | . 39 13 . 8 139 Influence Increases 1729 | 20 493 186 . 95 935 Destroy 0b10 Robot/C 1040 | . 360 120 . 60 500 Destroy 0b10 Robot/NC 95 | 20 20 5 . 25 25 Destroy Leader 232 | . 66 30 . 10 126 Allied During Kill 2 | . . 2 . . . Disable Machine 15 | . 15 . . . . Destroy Structure 60 | . 2 14 . . 44 Lose Combat Pursuer 285 | . 30 15 . . 240 Influence Decreases 1366 | 20 493 186 . 95 572 Time Decay 926 | 20 343 186 . 95 282 Lost Part 140 | . . . . . 140 Lost Ally 150 | . . . . . 150 Purge Threat 150 | . 150 . . . . Squads Dispatched 15 | . 4 1 . . 10 Investigation 8 | . 3 1 . . 4 Extermination . | . . . . . . Reinforcement 7 | . 1 . . . 6 Assault . | . . . . . . Garrison . | . . . . . . Intercept . | . . . . . . Searches Triggered . | . . . . . . Construction Impeded 2 | . . . . . 2 Haulers Reinforced . | . . . . . . Active Scanning Responses . | . . . . . . Cargo Convoy Interrupts . | . . . . . . Stealth | -11 -10 -10 -10 -9 -8 --------- Run | Yrd Mat Min Exi Min Mat Distress Signals 13 | . 6 1 . . 6 Communications Jammed . | . . . . . . Distress Signals . | . . . . . . Times Spotted 102 | . 23 6 . 6 67 Peak Tracking Total 12 | . 4 3 . 3 12 Tactical Retreats 10 | . 1 1 . . 8 Traps | -11 -10 -10 -10 -9 -8 ------- Run | Yrd Mat Min Exi Min Mat Traps Triggered 3 | . 2 . . . 1 Indirectly . | . . . . . . Trap Hack Attempts . | . . . . . . Triggered . | . . . . . . Disarmed 6 | . 6 . . . . Reprogrammed . | . . . . . . Reused . | . . . . . . Traps Extracted . | . . . . . . Installed . | . . . . . . Triggered . | . . . . . . Machines | -11 -10 -10 -10 -9 -8 ---------- Run | Yrd Mat Min Exi Min Mat Machines Disabled 1 | . 1 . . . . Max in Single Turn 1 | . 1 . . . . Machines Repaired . | . . . . . . Machines Dismantled . | . . . . . . Machines Sabotaged . | . . . . . . Overloaded Fab Kills . | . . . . . . Hacking | -11 -10 -10 -10 -9 -8 --------- Run | Yrd Mat Min Exi Min Mat Machines Accessed 9 | . 5 2 1 . 1 Terminals 6 | . 5 . . . 1 Fabricators . | . . . . . . Repair Stations . | . . . . . . Recycling Units . | . . . . . . Scanalyzers . | . . . . . . Garrison Access . | . . . . . . Total Hacks 19 | . 13 2 1 . 3 Successful 7 | . 4 2 1 . . Failed 12 | . 9 . . . 3 Catastrophic 3 | . 2 . . . 1 Database Lockouts . | . . . . . . Manual 3 | . 3 . . . . Terminals 16 | . 13 . . . 3 Fabricators . | . . . . . . Repair Stations . | . . . . . . Recycling Units . | . . . . . . Scanalyzers . | . . . . . . Garrison Access . | . . . . . . Terminal Hacks 7 | . 4 2 1 . . Record 1 | . . . 1 . . Open Door 2 | . . 2 . . . Emergency Access Points 1 | . 1 . . . . Unreport Threat 1 | . 1 . . . . Disarm Traps 1 | . 1 . . . . Zone Layout 1 | . 1 . . . . Fabricator Hacks . | . . . . . . Repair Station Hacks . | . . . . . . Recycling Unit Hacks . | . . . . . . Scanalyzer . | . . . . . . Garrison Access Hacks . | . . . . . . Unauthorized Hacks . | . . . . . . Terminals . | . . . . . . Fabricators . | . . . . . . Repair Stations . | . . . . . . Recycling Units . | . . . . . . Scanalyzers . | . . . . . . Garrison Access . | . . . . . . Data Cores Recovered . | . . . . . . Used . | . . . . . . Hacking Detections 6 | . 5 . . . 1 Full Trace Events 3 | . 2 . . . 1 Feedback Events . | . . . . . . Feedback Blocked . | . . . . . . Robot Schematics Acquired . | . . . . . . Robots Built . | . . . . . . Authchips . | . . . . . . Time . | . . . . . . Total Robot Build Rating . | . . . . . . Part Schematics Acquired . | . . . . . . Parts Built . | . . . . . . Authchips . | . . . . . . Time . | . . . . . . Total Part Build Rating . | . . . . . . Part Studies Acquired . | . . . . . . Parts Repaired . | . . . . . . Time . | . . . . . . Parts Recycled . | . . . . . . Recycled Matter . | . . . . . . Retrieved Matter . | . . . . . . Retrieved Components . | . . . . . . Parts Scanalyzed . | . . . . . . Part Schematics Acquired . | . . . . . . Parts Damaged . | . . . . . . Bothacking | -11 -10 -10 -10 -9 -8 ------------ Run | Yrd Mat Min Exi Min Mat Used RIF Installer . | . . . . . . Robots Hacked . | . . . . . . Non-combat . | . . . . . . Combat . | . . . . . . Robot Hacks Applied . | . . . . . . Relay Couplers Released . | . . . . . . Fabnet Peak Effective % . | . . . . . . Robots Rewired . | . . . . . . Allies Hacked . | . . . . . . Hacks Repelled . | . . . . . . Allies | -11 -10 -10 -10 -9 -8 -------- Run | Yrd Mat Min Exi Min Mat Total Allies 1 | . . 1 . . . Largest Group 1 | . . 1 1 . . Highest-Rated Group 31 | . . 31 31 . . Highest-Rated Ally 31 | . . 31 31 . . Total Orders 2 | . . . . . 2 EXPLORE 1 | . . . . . 1 RETURN 1 | . . . . . 1 Ally Attacks . | . . . . . . Total Damage . | . . . . . . Kills . | . . . . . . Allies Corrupted . | . . . . . . Allies Melted . | . . . . . . Intel | -11 -10 -10 -10 -9 -8 ------- Run | Yrd Mat Min Exi Min Mat Active Infowar (turns) 4207 | 89 1345 1177 596 440 560 Seismic 4207 | 89 1345 1177 596 440 560 Robot Analysis Total . | . . . . . . Derelict Logs Recovered 3 | . . 1 . 2 . Drone Launches 17 | . . . . . 17 Drone Recoveries 1 | . . . . . 1 Exploration | -11 -10 -10 -10 -9 -8 ------------- Run | Yrd Mat Min Exi Min Mat Turns Passed 4638 | 154 1347 1177 598 592 770 Spaces Moved 2398 | 76 679 702 351 328 262 Core 5 | 4 . . . . 1 Treads 2364 | 72 679 702 351 328 232 Legs . | . . . . . . Wheels 29 | . . . . . 29 Hover . | . . . . . . Flight . | . . . . . . Fastest Speed 50 | 50 160 160 160 160 110 Average Speed 159 | 154 160 160 160 160 155 Slowest Speed 450 | 160 160 160 160 160 450 Overloaded Moves . | . . . . . . Propulsion Burnouts . | . . . . . . Robots Hopped . | . . . . . . Potential Cave-ins . | . . . . . . Cave-ins Triggered . | . . . . . . Exploration Rate (%) 64 | 6 91 97 61 61 70 Regions Visited 5 Branch Regions 3 Pre-discovered Areas 2 | . . 1 1 . . Known Exits Taken . | . . . . . . Unknown Exits Taken 5 | 1 1 1 1 1 . Scrap Searched 5 | . . 3 . 2 . Spaces Dug . | . . . . . . Terrain Destroyed 63 | . . 15 . . 48 Melee . | . . . . . . Projectile . | . . . . . . AOE 63 | . . 15 . . 48 Terrain Rammed . | . . . . . . Walls Destroyed . | . . . . . . Machines Disabled . | . . . . . . Actions | -11 -10 -10 -10 -9 -8 --------- Run | Yrd Mat Min Exi Min Mat Total 2938 | 93 853 744 387 364 497 Wait 220 | . 63 23 34 1 99 Move 2393 | 75 678 701 350 327 262 Hop . | . . . . . . Pick Up 43 | 3 25 3 . 1 11 Fast Attach 20 | 7 . . 1 5 7 Attach 13 | . 1 . . 2 10 Detach 1 | . . . . . 1 Swap 31 | . 12 3 1 3 12 Drop 39 | . 19 5 1 5 9 Fire 165 | 8 53 8 . 19 77 Melee 4 | . . . . . 4 Ram 4 | . . . . . 4 Kick . | . . . . . . Crush 5 | . 2 1 . 1 1 Escape Stasis . | . . . . . . Rewire . | . . . . . . Trap . | . . . . . . Miscellaneous . | . . . . . . Route ------- -11/Scrapyard -10/Materials (discovered 4 exits: *Mat x3 / *Min) -10/Mines (discovered 4 exits: *Mat x2 / *Exi / [*Sub]) -10/Exiles -9/Mines (discovered 2 exits: *Mat x2) -8/Materials (discovered 3 exits: [*Fac x3]) History --------- Turn | Location | Event 18 | -11/Scrapyard | Discovered new exit (range 16) 155 | -11/Scrapyard | Entered Materials 311 | -10/Materials | Build established: Mutant 657 | -10/Materials | Discovered new exit (range 6) 727 | -10/Materials | Discovered new exit (range 13) 1107 | -10/Materials | Discovered new exit (range 16) 1277 | -10/Materials | Discovered new exit (range 15) 1502 | -10/Materials | Entered Mines 1558 | -10/Mines | Found the Drone Emporium 1568 | -10/Mines | Found Prototype Device 1711 | -10/Mines | Discovered new exit (range 11) 1763 | -10/Mines | Discovered new exit (range 7) 1793 | -10/Mines | Deemed a non-threat by the Exiles lab entrance 1795 | -10/Mines | Discovered new exit (range 5) 1959 | -10/Mines | Met a Derelict shopkeep closing up shop 2251 | -10/Mines | Identified exit to Materials 2275 | -10/Mines | Escorted by a lone wolf Derelict 2295 | -10/Mines | Learned location of Storage (-7) 2679 | -10/Mines | Entered Exiles 2679 | -10/Exiles | Accompanied by 1 ally 2718 | -10/Exiles | Met 8R-AWN 2745 | -10/Exiles | Met EX-HEX 2807 | -10/Exiles | Met EX-DEC 2815 | -10/Exiles | Learned location of Zion (-7) 2865 | -10/Exiles | Discovered new exit (range 10) 3066 | -10/Exiles | Met EX-BIN 3277 | -10/Exiles | Entered Mines 3625 | -9/Mines | Discovered new exit (range 7) 3665 | -9/Mines | Learned 2 Materials zone layouts 3687 | -9/Mines | Assembled infested the area 3692 | -9/Mines | Assisted by a Guerilla fighting off Assembled 3710 | -9/Mines | Core integrity fell below 50% 3744 | -9/Mines | Lost 4 parts (1p1u2w) 3786 | -9/Mines | Discovered new exit (range 8) 3805 | -9/Mines | Learned Materials emergency access door positions 3869 | -9/Mines | Entered Materials 3869 | -8/Materials | Evolved 4 slots: Propulsion x2, Utility x2 4123 | -8/Materials | Identified Decoy Drone Bay 4336 | -8/Materials | Discovered new exit (range 65) 4455 | -8/Materials | Discovered new exit (range 59) 4460 | -8/Materials | Discovered new exit (range 61) 4501 | -8/Materials | Destroyed 7 combat bots 4514 | -8/Materials | Core integrity fell below 50% 4549 | -8/Materials | Core integrity fell below 20% 4571 | -8/Materials | Lost 11 parts (2p5n1u3w) 4639 | -8/Materials | Destroyed by G-47 Trooper with Particle Gun Last Messages --------------- dispatching reinforcements to local area. 04597_ Slammed into U-05 Engineer. 04597_ U-05 Engineer knocked back. 04598_ U-05 Engineer builds a Wall. 04600_ Acquired 11 matter. 04601_ U-05 Engineer builds a Wall. 04612_ Acquired Deuterium Engine. 04617_ W-25 Informer sends out distress signal. 04619_ Critical hit (Burn: +37). 04619_ Destroyed Lgt. Nuclear Core. 04619_ G-47 Trooper suffers critical hit (Burn). 04623_ Prc. Beam Rifle destroyed. [Achievement: Hydra] 04631_ G-47 Trooper destroyed. 04636_ System corrupted: FCS attempts to trigger Prc. Beam Rifle. 04636_ System corrupted: Prc. Beam Rifle misfires. 04638_ G-47 Trooper Aluminum Leg severed. 04639_ Critical hit (Burn: +37). Map ----- +----------------------------------------------------+ | %+% ]!#???????# """ ? #?# """ #???# | | #= ]!#???????# ? #?# """ ############# | | #[ #???????# "T? #?# """ # | | # [ #???????? ? #?# !# | | ################# [%####### """ # | | #???# ![[= / """ # | | #???# ==%###### """ #/ | | #???# %!####?#] # | | #???# ############### ######+##### | | #???# # ! T ###### #??# | | ##??# # # ####### ""T"" | | !#### # """ """ # ! %+%=%= """"" | | !!% # """ """ # # ###################"T | | =! + """ """ # # #?????????????????#"" | | * # """ """ # [ / #?????????????????### | | #### # """ """?# #### #??????????????###### | | ##??# #? ? #%= # # #??????????????# | | #???# #?#########= [# # #?###########??# | | #???# #????????## # # #?# #??# | | #???# ######### #/#######+#?# """"""" #??## ### | | #???# # #### ## #?# """"""" #####+### | | #???# # #??# ## #?# """"""" # | | #???# # #### ## # # """"""" # "T" | | #???# # / ## #?# """"""" # """ | | #???# # #### ## #???????????????????? | | #???# + #??# ##! @= !#???????????????????? | | #???# ########??# #####g#############+######??? | | #???# #?????????# % ?? | | ##??# ########??# ?? | | #??# ?? | | #??# ###############+########+###########????? | | #??# #? ?????? ????# =#??????????? | | #??# # """ "????? """ ???# "" #??????????? | | #??# # """ ""???# """"" ??# ""S #??????????? | | ###??# + """ T"???# """"" #?# "" #??????????? | | ?????# # "" ??# """"" ??# #??????????? | | ?????### # """ "" #?# ???????# [ #??????????? | | ???????# #?""" #?# ????????#/######?#????????? | | ???????# #??"" ] #?# ?????????# #???? #????????? | | ???????# #??? #????????????# #?? """#????????? | | ???????# #???##?????????######## # """#????????? | | ???????# #?????????????# + + """#????????? | | ???????# #?????????????# """# # #????????? | | ???????# #?????????????# R"# #?? #????????? | | ?????### ###???????????# ""?# #????###????????? | | # ####! #???????????# ??# #???????????????? | | # ##+##+#?????###?#???# #???????????????? | | # #?????##?####?# #???????????????? | | # ## #????? ?# #???????????????? | | ###+## ## #??????"""" # ### #??????? | +----------------------------------------------------+ Best States ------------- Heat Dissipation 31 Energy Generation 14 Energy Capacity 275 Matter Stores 300 Matter Capacity 300 Sight Range 16 Terrain Scan Density 10 Evasion (%) 40 Recoil Reduction 4 Item Schematics ----------------- None Robot Schematics ------------------ None Fabricated ------------ Nothing Repaired ---------- Nothing Studied --------- None Alien Tech Used ----------------- None Achievements -------------- Hydra Let's See Who's Tougher Release The Drones! Challenges ------------ None Game ------ Seed MakeshiftTowerSteel Manual? 0 Play Time 00:30:07 Cumulative 24.7 hours Start 2026.03.21 @ 23:04:00 End 2026.03.21 @ 23:39:04 Sessions 1 Manual Loads 0 Difficulty Rogue Special Mode None Game No. 13 Rogue 13 Adventurer 0 Explorer 0 Win Type - Total 1 Types 1/0/0/0/0/0/0/0/0/0 Lore% 36 Gallery% 28 Achievement% 30 Wizard Run 0 Options --------- Layout 1 ASCII 0 Keyboard 1 Movement Arrows Keybinds 0 Fullscreen 2 Font 24/Smallcaps Map View 50x35 Zoom Use 0% Tactical HUD 1 Map Filters NONE Filters NONE Steam 1 RUN: 646f65db-0cc2-4f3a-b71f-62ceab8ff497